fUST/lending_fUST_20240905
["ID","MTS","AMOUNT","RATE_DAILY","PERIOD"]
[337222985,1725509449176,-500.0,0.00021917,2]
[337222986,1725509449185,-500.0,0.00021917,2]
[337222987,1725509449195,-1223.24,0.00021917,2]
[337222988,1725509449204,-521.32,0.00021917,2]
[337222989,1725509449214,-500.0,0.00021917,2]
[337222990,1725509449224,-521.32,0.00021917,2]
[337222991,1725509449235,-521.32,0.00021917,2]
[337222992,1725509449245,-521.32,0.00021917,2]
[337222993,1725509449255,-521.32,0.00021917,2]
[337222994,1725509449264,-521.32,0.00021917,2]
[337222995,1725509449274,-521.32,0.00021917,2]
[337222996,1725509449283,-500.0,0.00021917,2]
[337222997,1725509449293,-521.32,0.00021917,2]
[337222998,1725509449302,-521.32,0.00021917,2]
[337222999,1725509449312,-521.32,0.00021917,2]
[337223000,1725509449321,-541.99,0.00021917,2]
[337223001,1725509449331,-500.0,0.00021917,2]
[337223002,1725509449341,-521.32,0.00021917,2]
[337223003,1725509449352,-500.0,0.00021917,2]
[337223004,1725509449361,-521.32,0.00021917,2]
[337223005,1725509449371,-500.0,0.00021917,2]
[337223006,1725509449380,-521.32,0.00021917,2]
[337223007,1725509449390,-510.68399686,0.00021917,2]
[337223008,1725509449400,-521.32,0.00021917,2]
[337223009,1725509449410,-521.32,0.00021917,2]
[337223010,1725509449419,-521.32,0.00021917,2]
[337223011,1725509449429,-521.32,0.00021917,2]
[337223012,1725509449439,-521.32,0.00021917,2]
[337223013,1725509449448,-521.32,0.00021917,2]
[337223014,1725509449458,-500.0,0.00021917,2]
[337223015,1725509449467,-521.32,0.00021917,2]
[337223016,1725509449476,-521.32,0.00021917,2]
[337223017,1725509449486,-521.32,0.00021917,2]
[337223018,1725509449496,-521.32,0.00021917,2]
[337223019,1725509449506,-521.4349906,0.00021917,2]
[337223020,1725509449516,-500.0,0.00021917,2]
[337223021,1725509449525,-500.0,0.00021917,2]
[337223022,1725509449535,-497.42926069,0.00021917,2]
[337223023,1725509449545,-571.19,0.00021917,2]
[337223024,1725509449554,-500.0,0.00021917,2]
[337223025,1725509449564,-970.53,0.00021917,2]
[337223026,1725509449574,-500.0,0.00021917,2]
[337223027,1725509449583,-500.0,0.00021917,2]
[337223028,1725509449592,-500.0,0.00021917,2]
[337223029,1725509449601,-500.0,0.00021917,2]
[337223030,1725509449611,-500.0,0.00021917,2]
[337223031,1725509449621,-500.0,0.00021917,2]
[337223032,1725509449631,-500.0,0.00021917,2]
[337223033,1725509449640,-500.0,0.00021917,2]
[337223034,1725509449650,-1252.34,0.00021917,2]
[337223035,1725509449659,-500.0,0.00021917,2]
[337223036,1725509449669,-924.38,0.00021917,2]
[337223037,1725509449678,-500.0,0.00021917,2]
[337223038,1725509449689,-500.0,0.00021917,2]
[337223039,1725509449700,-500.0,0.00021917,2]
[337223040,1725509449709,-500.0,0.00021917,2]
[337223041,1725509449720,-500.0,0.00021917,2]
[337223042,1725509449729,-500.0,0.00021917,2]
[337223043,1725509449739,-500.0,0.00021917,2]
[337223044,1725509449748,-502.19,0.00021917,2]
[337223045,1725509449759,-500.0,0.00021917,2]
[337223046,1725509449768,-500.0,0.00021917,2]
[337223047,1725509449778,-500.0,0.00021917,2]
[337223048,1725509449787,-151.00000071,0.00021917,2]
[337223049,1725509449798,-500.0,0.00021917,2]
[337223050,1725509449808,-500.0,0.00021917,2]
[337223051,1725509449817,-500.0,0.00021917,2]
[337223052,1725509449827,-500.0,0.00021917,2]
[337223053,1725509449840,-500.0,0.00021917,2]
[337223054,1725509449850,-500.0,0.00021917,2]
[337223055,1725509449859,-313.51396644,0.00021917,2]
[337223056,1725509449868,-500.0,0.00021917,2]
[337223057,1725509449879,-500.0,0.00021917,2]
[337223058,1725509449888,-500.0,0.00021917,2]
[337223059,1725509449897,-500.0,0.00021917,2]
[337223060,1725509449907,-500.0,0.00021917,2]
[337223061,1725509449917,-500.0,0.00021917,2]
[337223062,1725509449926,-500.0,0.00021917,2]
[337223063,1725509449936,-500.0,0.00021917,2]
[337223064,1725509449946,-500.0,0.00021917,2]
[337223065,1725509449955,-500.0,0.00021917,2]
[337223066,1725509449966,-502.85070156,0.00021917,2]
[337223067,1725509449977,-500.0,0.00021917,2]
[337223068,1725509449987,-151.0,0.00021917,2]
[337223069,1725509449997,-176.898974,0.00021917,2]
[337223070,1725509450007,-501.96570295,0.00021917,2]
[337223071,1725509450019,-500.0,0.00021917,2]
[337223072,1725509450031,-832.5,0.00021917,2]
[337223073,1725509450043,-500.0,0.00021917,2]
[337223074,1725509450055,-445.99601141,0.00021917,2]
[337223075,1725509450065,-500.0,0.00021917,2]
[337223076,1725509450076,-909.44,0.00021917,2]
[337223077,1725509450087,-500.0,0.00021917,2]
[337223078,1725509450099,-500.0,0.00021917,2]
[337223079,1725509450110,-500.0,0.00021917,2]
[337223080,1725509450121,-500.0,0.00021917,2]
[337223081,1725509450133,-500.0,0.00021917,2]
[337223082,1725509450143,-500.0,0.00021917,2]
[337223083,1725509450152,-500.0,0.00021917,2]
[337223084,1725509450162,-500.0,0.00021917,2]
[337223085,1725509450171,-500.0,0.00021917,2]
[337223086,1725509450180,-155.851105,0.00021917,2]
[337223087,1725509450189,-515.88,0.00021917,2]
[337223088,1725509450202,-500.0,0.00021917,2]
[337223089,1725509450213,-500.0,0.00021917,2]
[337223090,1725509450223,-500.0,0.00021917,2]
[337223091,1725509450233,-500.0,0.00021917,2]
[337223092,1725509450242,-796.6,0.00021917,2]
[337223093,1725509450252,-500.0,0.00021917,2]
[337223094,1725509450262,-205.49218709,0.00021917,2]
[337223095,1725509450271,-562.28429831,0.00021917,2]
[337223096,1725509450281,-500.0,0.00021917,2]
[337223097,1725509450290,-500.0,0.00021917,2]
[337223098,1725509450301,-500.0,0.00021917,2]
[337223099,1725509450312,-500.0,0.00021917,2]
[337223100,1725509450322,-470.39625879,0.00021917,2]
[337223101,1725509450331,-1798.29,0.00021917,2]
[337223102,1725509450343,-151.0,0.00021917,2]
[337223103,1725509450363,-151.0,0.00021917,2]
[337223104,1725509450373,-151.0,0.00021917,2]
[337223105,1725509450382,-1007.44241025,0.00021917,2]
[337223106,1725509450392,-151.0,0.00021917,2]
[337223107,1725509450401,-153.056482,0.00021917,2]
[337223108,1725509450411,-151.0,0.00021917,2]
[337223109,1725509450420,-151.0,0.00021917,2]
[337223110,1725509450429,-1565.79,0.00021917,2]
[337223111,1725509450439,-257.71052906,0.00021917,2]
[337223112,1725509450449,-153.823621,0.00021917,2]
[337223113,1725509450458,-500.0,0.00021917,2]
[337223114,1725509450468,-521.8,0.00021917,2]
[337223115,1725509450478,-500.0,0.00021917,2]
[337223116,1725509450489,-504.78034791,0.00021917,2]
[337223117,1725509450498,-390.64520648,0.00021917,2]
[337223118,1725509450509,-500.0,0.00021917,2]
[337223119,1725509450519,-1143.82,0.00021917,2]
[337223120,1725509450528,-500.0,0.00021917,2]
[337223121,1725509450537,-500.0,0.00021917,2]
[337223122,1725509450548,-500.0,0.00021917,2]
[337223123,1725509450558,-500.0,0.00021917,2]
[337223124,1725509450567,-766.22,0.00021917,2]
[337223125,1725509450577,-500.0,0.00021917,2]
[337223126,1725509450587,-500.0,0.00021917,2]
[337223127,1725509450596,-500.0,0.00021917,2]
[337223128,1725509450606,-544.64933814,0.00021917,2]
[337223129,1725509450615,-500.0,0.00021917,2]
[337223130,1725509450625,-500.0,0.00021917,2]
[337223131,1725509450635,-500.0,0.00021917,2]
[337223132,1725509450644,-500.0,0.00021917,2]
[337223133,1725509450654,-500.0,0.00021917,2]
[337223134,1725509450663,-500.0,0.00021917,2]
[337223135,1725509450673,-500.0,0.00021917,2]
[337223136,1725509450685,-500.0,0.00021917,2]
[337223137,1725509450694,-283.17318248,0.00021917,2]
[337223138,1725509450704,-615.08429527,0.00021917,2]
[337223139,1725509450714,-500.0,0.00021917,2]
[337223140,1725509450724,-500.0,0.00021917,2]
[337223141,1725509450734,-500.0,0.00021917,2]
[337223142,1725509450745,-1383.14,0.00021917,2]
[337223143,1725509450754,-500.0,0.00021917,2]
[337223144,1725509450765,-1004.89,0.00021917,2]
[337223145,1725509450775,-1266.66,0.00021917,2]
[337223146,1725509450785,-500.0,0.00021917,2]
[337223147,1725509450796,-500.0,0.00021917,2]
[337223148,1725509450806,-502.33058839,0.00021917,2]
[337223149,1725509450816,-500.0,0.00021917,2]
[337223150,1725509450826,-500.0,0.00021917,2]
[337223151,1725509450839,-193.28702352,0.00021917,2]
[337223152,1725509450849,-500.0,0.00021917,2]
[337223153,1725509450859,-500.0,0.00021917,2]
[337223154,1725509450869,-697.1,0.00021917,2]
[337223155,1725509450879,-1727.83,0.00021917,2]
[337223156,1725509450889,-500.0,0.00021917,2]
[337223157,1725509450898,-151.0,0.00021917,2]
[337223158,1725509450908,-152.193958,0.00021917,2]
[337223159,1725509450921,-1756.45,0.00021917,2]
[337223160,1725509450932,-500.0,0.00021917,2]
[337223161,1725509450943,-502.86786803,0.00021917,2]
[337223162,1725509450952,-557.52048082,0.00021917,2]
[337223163,1725509450962,-500.0,0.00021917,2]
[337223164,1725509450972,-537.59015667,0.00021917,2]
[337223165,1725509450981,-757.52,0.00021917,2]
[337223166,1725509450991,-571.23,0.00021917,2]
[337223167,1725509451000,-500.0,0.00021917,2]
[337223168,1725509451010,-502.17520713,0.00021917,2]
[337223169,1725509451019,-500.0,0.00021917,2]
[337223170,1725509451028,-608.5059728,0.00021917,2]
[337223171,1725509451037,-661.07,0.00021917,2]
[337223172,1725509451047,-661.07,0.00021917,2]
[337223173,1725509451056,-661.07,0.00021917,2]
[337223174,1725509451066,-500.0,0.00021917,2]
[337223175,1725509451076,-661.07,0.00021917,2]
[337223176,1725509451085,-661.07,0.00021917,2]
[337223177,1725509451096,-1101.3,0.00021917,2]
[337223178,1725509451106,-661.07,0.00021917,2]
[337223179,1725509451117,-661.07,0.00021917,2]
[337223180,1725509451127,-661.07,0.00021917,2]
[337223181,1725509451136,-661.07,0.00021917,2]
[337223182,1725509451147,-661.07,0.00021917,2]
[337223183,1725509451156,-661.07,0.00021917,2]
[337223184,1725509451166,-661.07,0.00021917,2]
[337223185,1725509451176,-661.07,0.00021917,2]
[337223186,1725509451187,-661.07,0.00021917,2]
[337223187,1725509451198,-661.07,0.00021917,2]
[337223188,1725509451209,-661.07,0.00021917,2]
[337223189,1725509451220,-661.07,0.00021917,2]
[337223190,1725509451230,-661.07,0.00021917,2]
[337223191,1725509451240,-661.07,0.00021917,2]
[337223192,1725509451251,-661.07,0.00021917,2]
[337223193,1725509451261,-661.07,0.00021917,2]
[337223194,1725509451270,-661.07,0.00021917,2]
[337223195,1725509451281,-661.07,0.00021917,2]
[337223196,1725509451291,-661.29014757,0.00021917,2]
[337223197,1725509451303,-502.77176535,0.00021917,2]
[337223198,1725509451315,-500.0,0.00021917,2]
[337223199,1725509451326,-579.4,0.00021917,2]
[337223200,1725509451337,-500.0,0.00021917,2]
[337223201,1725509451347,-500.0,0.00021917,2]
[337223202,1725509451356,-500.0,0.00021917,2]
[337223203,1725509451366,-500.0,0.00021917,2]
[337223204,1725509451375,-500.0,0.00021917,2]
[337223205,1725509451384,-500.0,0.00021917,2]
[337223206,1725509451394,-500.0,0.00021917,2]
[337223207,1725509451403,-500.0,0.00021917,2]
[337223208,1725509451413,-500.0,0.00021917,2]
[337223209,1725509451422,-500.0,0.00021917,2]
[337223210,1725509451432,-500.0,0.00021917,2]
[337223211,1725509451441,-500.0,0.00021917,2]
[337223212,1725509451451,-448.68214997,0.00021917,2]
[337223213,1725509451460,-1463.61,0.00021917,2]
[337223214,1725509451470,-500.0,0.00021917,2]
[337223215,1725509451479,-500.0,0.00021917,2]
[337223216,1725509451488,-1784.31,0.00021917,2]
[337223217,1725509451498,-500.0,0.00021917,2]
[337223218,1725509451507,-500.0,0.00021917,2]
[337223219,1725509451516,-500.0,0.00021917,2]
[337223220,1725509451525,-500.0,0.00021917,2]
[337223221,1725509451535,-500.0,0.00021917,2]
[337223222,1725509451544,-500.0,0.00021917,2]
[337223223,1725509451554,-500.0,0.00021917,2]
[337223224,1725509451563,-500.0,0.00021917,2]
[337223225,1725509451572,-500.0,0.00021917,2]
[337223226,1725509451583,-1476.010162,0.00021917,2]
[337223227,1725509451593,-500.0,0.00021917,2]
[337223228,1725509451604,-1476.010162,0.00021917,2]
[337223229,1725509451613,-1476.010162,0.00021917,2]
[337223230,1725509451622,-7164.75,0.00021917,2]
[337223231,1725509451632,-1476.010162,0.00021917,2]
[337223232,1725509451641,-1476.010162,0.00021917,2]
[337223233,1725509451652,-500.0,0.00021917,2]
[337223234,1725509451661,-1476.010162,0.00021917,2]
[337223235,1725509451670,-231.67858329,0.00021917,2]
[337223236,1725509451679,-1476.010162,0.00021917,2]
[337223237,1725509451689,-1476.010162,0.00021917,2]
[337223238,1725509451698,-1476.010162,0.00021917,2]
[337223239,1725509451709,-1476.010162,0.00021917,2]
[337223240,1725509451719,-1476.010162,0.00021917,2]
[337223241,1725509451728,-1476.010162,0.00021917,2]
[337223242,1725509451739,-1476.010162,0.00021917,2]
[337223243,1725509451748,-1476.010162,0.00021917,2]
[337223244,1725509451757,-500.0,0.00021917,2]
[337223245,1725509451767,-1476.010162,0.00021917,2]
[337223246,1725509451777,-1476.010162,0.00021917,2]
[337223247,1725509451787,-1476.010162,0.00021917,2]
[337223248,1725509451799,-1476.010162,0.00021917,2]
[337223249,1725509451808,-1476.010162,0.00021917,2]
[337223250,1725509451818,-1000.15,0.00021917,2]
[337223251,1725509451827,-732.0,0.00021917,2]
[337223252,1725509451839,-598.435505,0.00021917,2]
[337223253,1725509451849,-1476.010159,0.00021917,2]
[337223254,1725509451858,-500.0,0.00021917,2]
[337223255,1725509451867,-500.0,0.00021917,2]
[337223256,1725509451876,-500.0,0.00021917,2]
[337223257,1725509451886,-500.0,0.00021917,2]
[337223258,1725509451894,-9407.27,0.00021917,2]
[337223259,1725509451903,-500.0,0.00021917,2]
[337223260,1725509451914,-506.73887227,0.00021917,2]
[337223261,1725509451923,-500.0,0.00021917,2]
[337223262,1725509451933,-504.43819092,0.00021917,2]
[337223263,1725509451943,-1670.97,0.00021917,2]
[337223264,1725509451952,-500.0,0.00021917,2]
[337223265,1725509451961,-336.70395859,0.00021917,2]
[337223266,1725509451970,-500.0,0.00021917,2]
[337223267,1725509451979,-503.5722042,0.00021917,2]
[337223268,1725509451988,-500.0,0.00021917,2]
[337223269,1725509451998,-9112.27,0.00021917,2]
[337223270,1725509452008,-1460.45,0.00021917,2]
[337223271,1725509452017,-611.25,0.00021917,2]
[337223272,1725509452026,-1443.59,0.00021917,2]
[337223273,1725509452036,-509.58897232,0.00021917,2]
[337223274,1725509452045,-626.58,0.00021917,2]
[337223275,1725509452054,-5157.39,0.00021917,2]
[337223276,1725509452063,-500.0,0.00021917,2]
[337223277,1725509452073,-500.0,0.00021917,2]
[337223278,1725509452082,-1317.05,0.00021917,2]
[337223279,1725509452091,-500.0,0.00021917,2]
[337223280,1725509452100,-514.92175418,0.00021917,2]
[337223281,1725509452109,-566.38,0.00021917,2]
[337223282,1725509452118,-500.0,0.00021917,2]
[337223283,1725509452127,-500.0,0.00021917,2]
[337223284,1725509452136,-500.0,0.00021917,2]
[337223285,1725509452146,-504.89156472,0.00021917,2]
[337223286,1725509452155,-500.0,0.00021917,2]
[337223287,1725509452164,-500.0,0.00021917,2]
[337223288,1725509452173,-151.762313,0.00021917,2]
[337223289,1725509452182,-500.0,0.00021917,2]
[337223290,1725509452192,-151.762313,0.00021917,2]
[337223291,1725509452201,-4806.09,0.00021917,2]
[337223292,1725509452210,-151.762313,0.00021917,2]
[337223293,1725509452219,-151.762313,0.00021917,2]
[337223294,1725509452228,-500.0,0.00021917,2]
[337223295,1725509452239,-151.762313,0.00021917,2]
[337223296,1725509452248,-151.762313,0.00021917,2]
[337223297,1725509452258,-151.762313,0.00021917,2]
[337223298,1725509452267,-500.0,0.00021917,2]
[337223299,1725509452276,-151.762313,0.00021917,2]
[337223300,1725509452286,-151.762313,0.00021917,2]
[337223301,1725509452300,-1015.89,0.00021917,2]
[337223302,1725509452316,-151.762313,0.00021917,2]
[337223303,1725509452325,-500.0,0.00021917,2]
[337223304,1725509452334,-151.762313,0.00021917,2]
[337223305,1725509452346,-151.762313,0.00021917,2]
[337223306,1725509452357,-500.0,0.00021917,2]
[337223307,1725509452367,-151.762313,0.00021917,2]
[337223308,1725509452376,-151.762313,0.00021917,2]
[337223309,1725509452385,-960.45,0.00021917,2]
[337223310,1725509452395,-151.762313,0.00021917,2]
[337223311,1725509452404,-9042.18,0.00021917,2]
[337223312,1725509452413,-151.762313,0.00021917,2]
[337223313,1725509452422,-151.762313,0.00021917,2]
[337223314,1725509452431,-151.762314,0.00021917,2]
[337223315,1725509452441,-500.0,0.00021917,2]
[337223316,1725509452450,-2273.210036,0.00021917,2]
[337223317,1725509452459,-2273.210036,0.00021917,2]
[337223318,1725509452468,-2273.210036,0.00021917,2]
[337223319,1725509452479,-2273.210036,0.00021917,2]
[337223320,1725509452490,-2273.210036,0.00021917,2]
[337223321,1725509452501,-2273.210036,0.00021917,2]
[337223322,1725509452512,-2273.210036,0.00021917,2]
[337223323,1725509452522,-2273.210036,0.00021917,2]
[337223324,1725509452533,-2273.210036,0.00021917,2]
[337223325,1725509452543,-500.0,0.00021917,2]
[337223326,1725509452554,-2273.210036,0.00021917,2]
[337223327,1725509452563,-2273.210036,0.00021917,2]
[337223328,1725509452572,-2273.210036,0.00021917,2]
[337223329,1725509452581,-2273.210036,0.00021917,2]
[337223330,1725509452591,-500.0,0.00021917,2]
[337223331,1725509452601,-2273.210036,0.00021917,2]
[337223332,1725509452613,-510.79612141,0.00021917,2]
[337223333,1725509452624,-2273.210036,0.00021917,2]
[337223334,1725509452634,-624.68740427,0.00021917,2]
[337223335,1725509452644,-2273.210036,0.00021917,2]
[337223336,1725509452653,-2273.210036,0.00021917,2]
[337223337,1725509452663,-2273.21004585,0.00021917,2]
[337223338,1725509452672,-540.78415115,0.00021917,2]
[337223339,1725509452681,-500.0,0.00021917,2]
[337223340,1725509452692,-500.0,0.00021917,2]
[337223341,1725509452704,-506.12619264,0.00021917,2]
[337223342,1725509452713,-500.0,0.00021917,2]
[337223343,1725509452725,-1949.94,0.00021917,2]
[337223344,1725509452736,-500.0,0.00021917,2]
[337223345,1725509452748,-500.0,0.00021917,2]
[337223346,1725509452758,-500.0,0.00021917,2]
[337223347,1725509452767,-500.0,0.00021917,2]
[337223348,1725509452777,-264.47090383,0.00021917,2]
[337223349,1725509452787,-500.0,0.00021917,2]
[337223350,1725509452797,-553.53,0.00021917,2]
[337223351,1725509452806,-500.0,0.00021917,2]
[337223352,1725509452816,-500.0,0.00021917,2]
[337223353,1725509452827,-683.77,0.00021917,2]
[337223354,1725509452841,-1533.59,0.00021917,2]
[337223355,1725509452852,-500.0,0.00021917,2]
[337223356,1725509452861,-8682.96,0.00021917,2]
[337223357,1725509452871,-531.96,0.00021917,2]
[337223358,1725509452881,-500.0,0.00021917,2]
[337223359,1725509452890,-1250.84,0.00021917,2]
[337223360,1725509452900,-504.2030499,0.00021917,2]
[337223361,1725509452910,-500.0,0.00021917,2]
[337223362,1725509452920,-500.0,0.00021917,2]
[337223363,1725509452930,-500.0,0.00021917,2]
[337223364,1725509452940,-500.0,0.00021917,2]
[337223365,1725509452949,-500.0,0.00021917,2]
[337223366,1725509452958,-500.0,0.00021917,2]
[337223367,1725509452968,-3408.09,0.00021917,2]
[337223368,1725509452978,-500.0,0.00021917,2]
[337223369,1725509452987,-506.49654558,0.00021917,2]
[337223370,1725509452997,-500.0,0.00021917,2]
[337223371,1725509453007,-4736.95,0.00021917,2]
[337223372,1725509453016,-750.27,0.00021917,2]
[337223373,1725509453026,-543.37,0.00021917,2]
[337223374,1725509453035,-500.0,0.00021917,2]
[337223375,1725509453046,-500.0,0.00021917,2]
[337223376,1725509453055,-500.0,0.00021917,2]
[337223377,1725509453065,-500.0,0.00021917,2]
[337223378,1725509453074,-5057.23,0.00021917,2]
[337223379,1725509453084,-503.46538224,0.00021917,2]
[337223380,1725509453093,-500.0,0.00021917,2]
[337223381,1725509453102,-1107.97,0.00021917,2]
[337223382,1725509453112,-1157.534712,0.00021917,2]
[337223383,1725509453121,-500.0,0.00021917,2]
[337223384,1725509453130,-1157.534712,0.00021917,2]
[337223385,1725509453140,-1157.534712,0.00021917,2]
[337223386,1725509453149,-1157.534712,0.00021917,2]
[337223387,1725509453159,-500.0,0.00021917,2]
[337223388,1725509453169,-1157.534712,0.00021917,2]
[337223389,1725509453179,-1157.534712,0.00021917,2]
[337223390,1725509453189,-1157.534712,0.00021917,2]
[337223391,1725509453200,-1157.534712,0.00021917,2]
[337223392,1725509453210,-830.15,0.00021917,2]
[337223393,1725509453221,-1157.534712,0.00021917,2]
[337223394,1725509453231,-505.40290241,0.00021917,2]
[337223395,1725509453240,-505.41448521,0.00021917,2]
[337223396,1725509453251,-1117.94,0.00021917,2]
[337223397,1725509453260,-1702.12,0.00021917,2]
[337223398,1725509453270,-1157.534712,0.00021917,2]
[337223399,1725509453280,-500.0,0.00021917,2]
[337223400,1725509453289,-1157.534712,0.00021917,2]
[337223401,1725509453300,-1157.534712,0.00021917,2]
[337223402,1725509453310,-1157.534712,0.00021917,2]
[337223403,1725509453319,-1157.534712,0.00021917,2]
[337223404,1725509453329,-1157.534712,0.00021917,2]
[337223405,1725509453338,-1157.534712,0.00021917,2]
[337223406,1725509453348,-3583.91,0.00021917,2]
[337223407,1725509453357,-1157.534712,0.00021917,2]
[337223408,1725509453367,-1157.534712,0.00021917,2]
[337223409,1725509453376,-1157.534712,0.00021917,2]
[337223410,1725509453386,-1157.534719,0.00021917,2]
[337223411,1725509453395,-500.0,0.00021917,2]
[337223412,1725509453405,-500.0,0.00021917,2]
[337223413,1725509453414,-500.0,0.00021917,2]
[337223414,1725509453424,-1281.45,0.00021917,2]
[337223415,1725509453434,-506.64092324,0.00021917,2]
[337223416,1725509453443,-500.0,0.00021917,2]
[337223417,1725509453454,-500.0,0.00021917,2]
[337223418,1725509453464,-1308.88,0.00021917,2]
[337223419,1725509453476,-500.0,0.00021917,2]
[337223420,1725509453487,-500.0,0.00021917,2]
[337223421,1725509453498,-500.0,0.00021917,2]
[337223422,1725509453508,-500.0,0.00021917,2]
[337223423,1725509453518,-315.70776142,0.00021917,2]
[337223424,1725509453848,-184.29223858,0.00021917,2]
[337223425,1725509453858,-103.80776142,0.00021917,2]
[337223426,1725509454218,-153.0,0.000212,2]
[337223427,1725509454228,-47.19223858,0.00021917,2]
[337223428,1725509454238,-500.0,0.00021917,2]
[337223429,1725509454248,-151.0,0.00021917,2]
[337223430,1725509454258,-151.0,0.00021917,2]
[337223431,1725509454268,-151.0,0.00021917,2]
[337223432,1725509454278,-151.0,0.00021917,2]
[337223433,1725509454288,-674.99,0.00021917,2]
[337223434,1725509454299,-151.0,0.00021917,2]
[337223435,1725509454309,-1205.88,0.00021917,2]
[337223436,1725509454322,-151.0,0.00021917,2]
[337223437,1725509454332,-568.45,0.00021917,2]
[337223438,1725509454342,-151.0,0.00021917,2]
[337223439,1725509454352,-205.014195,0.00021917,2]
[337223440,1725509454362,-1107.27,0.00021917,2]
[337223441,1725509454371,-2027.46,0.00021917,2]
[337223442,1725509454381,-1214.83,0.00021917,2]
[337223443,1725509454390,-398.42239617,0.00021917,2]
[337223444,1725509454400,-500.0,0.00021917,2]
[337223445,1725509454410,-445.22231769,0.00021917,2]
[337223446,1725509454420,-500.0,0.00021917,2]
[337223447,1725509454430,-500.0,0.00021917,2]
[337223448,1725509454439,-500.0,0.00021917,2]
[337223449,1725509454449,-500.0,0.00021917,2]
[337223450,1725509454460,-505.38329523,0.00021917,2]
[337223451,1725509454470,-527.87539366,0.00021917,2]
[337223452,1725509454479,-1072.56,0.00021917,2]
[337223453,1725509454488,-501.41954322,0.00021917,2]
[337223454,1725509454498,-805.59,0.00021917,2]
[337223455,1725509454507,-500.0,0.00021917,2]
[337223456,1725509454517,-500.0,0.00021917,2]
[337223457,1725509454527,-500.0,0.00021917,2]
[337223458,1725509454536,-500.0,0.00021917,2]
[337223459,1725509454546,-573.81,0.00021917,2]
[337223460,1725509454557,-1550.91,0.00021917,2]
[337223461,1725509454566,-529.2839778,0.00021917,2]
[337223462,1725509454576,-868.84,0.00021917,2]
[337223463,1725509454585,-369.04313699,0.00021917,2]
[337223464,1725509454595,-500.0,0.00021917,2]
[337223465,1725509454605,-386.02795879,0.00021917,2]
[337223466,1725509454619,-204.04204121,0.00021917,2]
[337223467,1725509454632,-500.0,0.00021917,2]
[337223468,1725509454643,-98.32096344,0.00021917,2]
[337223469,1725509478677,4221.04416771,0.0002,2]
[337223470,1725509536888,497.76921659,0.00015,2]
[337223471,1725509598567,3000.0,0.00027,120]
[337223472,1725509621451,-266.6254169,0.0002092,2]
[337223473,1725509621476,-1000.0,0.00021585,2]
[337223474,1725509621501,-500.0,0.00021673,2]
[337223475,1725509621528,-3176.45698314,0.00021807,2]
[337223476,1725509621552,-3000.0,0.000219,2]
[337223477,1725509632725,1317.1770774,0.00020913,2]
[337223478,1725509638422,-487498.074108,0.00021907,3]
[337223479,1725509638458,-486995.279465,0.00021907,2]
[337223484,1725510007469,169.0,0.0002051,2]
[337223497,1725510521061,21143.22410549,0.0001999,2]
[337223573,1725510636399,1000.0,0.00025,60]
[337223612,1725510637831,-298.9080311,0.00020517,2]
[337223614,1725510637842,-1986.49361185,0.00020524,2]